bitfinex/quotes_SOLUSD_20220116
["timestamp","ask_amount","ask_price","bid_price","bid_amount"]
[1642337864983,98.0306,149.15,149.05,1.66129026]
[1642337865183,99.73137588,149.15,149.05,1.66129026]
[1642337865585,99.73137588,149.15,149.01,3.42730833]
[1642337865586,99.73137588,149.15,149.04,1.66129026]
[1642337865784,98.0306,149.15,149.04,1.66129026]
[1642337866284,98.0306,149.15,149.02,18.69672186]
[1642337866485,109.79297588,149.15,149.02,18.94672186]
[1642337866685,0.26,149.14,149.02,18.94672186]
[1642337867287,108.0922,149.15,149.02,18.94672186]
[1642337869691,0.26,149.14,149.02,18.94672186]
[1642337870091,10.3223,149.14,149.02,18.94672186]
[1642337870293,47.63662207,149.12,149.02,18.94672186]
[1642337870493,22.9789,149.11,149.02,18.94672186]
[1642337870892,23.2289,149.11,149.02,18.94672186]
[1642337871191,23.2289,149.11,149.02,17.2854316]
[1642337872191,22.9789,149.11,149.02,17.2854316]
[1642337873895,28.9789,149.11,149.02,18.94672186]
[1642337874295,0.26,149.1,149.02,18.94672186]
[1642337874496,0.26,149.1,149.02,17.2854316]
[1642337874696,0.26,149.1,149.03,1.09847597]
[1642337874897,29.5331,149.15,149.03,1.60847597]
[1642337875098,23.6899,149.14,149.03,1.60847597]
[1642337875299,23.6899,149.14,149.04,1.09847597]
[1642337875701,23.6899,149.14,149.05,2.53702149]
[1642337875898,23.6899,149.14,149.05,2.78702149]
[1642337876098,23.6899,149.14,149.06,1.09847597]
[1642337876299,24.6737,149.2,149.07,0.26]
[1642337876500,48.2271,149.2,149.07,0.26]
[1642337876698,54.2271,149.2,149.08,1.09847597]
[1642337876898,41.06420716,149.19,149.09,16.98755325]
[1642337877298,47.06420716,149.19,149.1,1.09847597]
[1642337877800,47.06420716,149.19,149.1,1.34847597]
[1642337878099,47.06420716,149.19,149.09,16.98755325]
[1642337878307,47.06420716,149.19,149.09,17.23755325]
[1642337878700,47.06420716,149.19,149.09,18.33602922]
[1642337879302,47.06420716,149.19,149.09,18.07602922]
[1642337881001,0.26,149.18,149.09,18.07602922]
[1642337883002,0.26,149.18,149.08,1.66129026]
[1642337883203,23.3057,149.18,149.08,1.66129026]
[1642337883406,29.5557,149.18,149.08,1.66129026]
[1642337883603,67.48,149.17,149.08,1.66129026]
[1642337883803,73.48,149.17,149.08,1.66129026]
[1642337884003,49.01049015,149.16,149.07,42.83966336]
[1642337884404,122.49049015,149.16,149.07,19.57646336]
[1642337884605,0.26,149.15,149.07,19.57646336]
[1642337885005,0.26,149.15,149.07,17.9151731]
[1642337888509,0.26,149.15,149.07,17.6651731]
[1642337888707,0.26,149.15,149.07,17.9151731]
[1642337889206,0.26,149.15,149.05,1.66129026]
[1642337889439,23.6575,149.15,149.06,0.25]
[1642337889611,91.1375,149.15,149.06,0.25]
[1642337889811,97.1375,149.15,149.06,0.25]
[1642337890408,97.3875,149.15,149.05,1.91129026]
[1642337892611,97.3875,149.15,149.05,0.25]
[1642337892812,97.3875,149.15,149.04,20.68415973]
[1642337893010,97.3875,149.15,149.05,1.66129026]
[1642337893415,97.3875,149.15,149.05,1.91129026]
[1642337893814,97.3875,149.15,149.05,0.25]
[1642337894413,97.3875,149.15,149.04,20.68415973]
[1642337895212,97.3875,149.15,149.05,1.66129026]
[1642337895412,97.3875,149.15,149.05,1.91129026]
[1642337898317,97.3875,149.15,149.05,0.25]
[1642337898720,97.3875,149.15,149.05,1.09847597]
[1642337898917,97.3875,149.15,149.05,1.34847597]
[1642337899319,97.3875,149.15,149.05,3.00976623]
[1642337900417,29.9075,149.15,149.05,1.91129026]
[1642337901419,23.9075,149.15,149.05,1.91129026]
[1642337901617,23.9075,149.15,149.05,3.00976623]
[1642337901819,23.9075,149.15,149.05,1.91129026]
[1642337902018,91.3875,149.15,149.05,1.91129026]
[1642337902318,91.3875,149.15,149.06,1.66129026]
[1642337902519,91.3875,149.15,149.07,0.53958362]
[1642337902918,97.3875,149.15,149.07,0.53958362]
[1642337903519,97.3875,149.15,149.06,1.91129026]
[1642337904449,97.3875,149.15,149.07,15.67428793]
[1642337904821,97.3875,149.15,149.07,15.92428793]
[1642337905022,97.3875,149.15,149.07,0.25]
[1642337906024,97.3875,149.15,149.06,1.91129026]
[1642337906623,97.3875,149.15,149.06,0.25]
[1642337906825,97.3875,149.15,149.05,17.72189033]
[1642337908127,97.3875,149.15,149.06,1.66129026]
[1642337908328,97.3875,149.15,149.06,1.91129026]
[1642337912158,97.3875,149.15,149.07,1.66129026]
[1642337912356,97.3875,149.15,149.07,1.91129026]
[1642337912757,97.3875,149.15,149.08,3.50185302]
[1642337912956,97.3875,149.15,149.07,1.91129026]
[1642337919371,97.3875,149.15,149.07,1.66129026]
[1642337919669,97.3875,149.15,149.08,1.66129026]
[1642337920070,97.4575,149.15,149.08,1.66129026]
[1642337920270,1.70077588,149.14,149.07,1.66129026]
[1642337920472,42.14773472,149.13,149.07,1.66129026]
[1642337920970,60.1614106,149.13,149.05,1.66129026]
[1642337921170,0.07,149.12,149.05,1.66129026]
[1642337921370,23.2129,149.12,149.05,1.66129026]
[1642337921771,29.4629,149.12,149.05,1.66129026]
[1642337921981,29.4629,149.12,149.04,1.66129026]
[1642337922371,41.22727588,149.12,149.04,1.66129026]
[1642337922572,188.48,149.11,149.01,3.42730833]
[1642337922771,22.9959,149.1,149.01,3.42730833]
[1642337923070,67.48,149.09,149.0,3.42730833]
[1642337923270,37.20129045,149.08,149.0,3.42730833]
[1642337923472,68.26829045,149.08,149.0,3.42730833]
[1642337923673,68.51829045,149.08,149.0,3.42730833]
[1642337923873,0.26,149.07,148.96,18.19753369]
[1642337924273,42.65653592,149.05,148.96,18.19753369]
[1642337924480,67.48,149.04,148.96,18.19753369]
[1642337924974,67.48,149.04,148.94,3.42730833]
[1642337924975,73.73,149.04,148.94,3.42730833]
[1642337925175,23.8541,149.03,148.94,3.42730833]
[1642337925375,30.1041,149.03,148.94,3.42730833]
[1642337925574,67.48,149.02,148.94,3.42730833]
[1642337925776,40.14917412,149.01,148.94,3.42730833]
[1642337925975,67.48,149.0,148.93,3.81411583]
[1642337926376,80.648,149.0,148.93,3.81411583]
[1642337926576,90.7197,149.0,148.93,3.81411583]
[1642337926978,90.7197,149.0,148.9,3.42730833]
[1642337927176,23.6894,148.99,148.9,17.77576191]
[1642337927377,49.10873305,148.98,148.9,17.77576191]
[1642337927577,67.48,148.97,148.9,3.42730833]
[1642337927978,74.0,148.97,148.9,3.42730833]
[1642337928378,74.0,148.97,148.87,3.42730833]
[1642337928579,98.3778,148.97,148.88,15.1316532]
[1642337929080,98.3778,148.97,148.87,3.42730833]
[1642337929280,98.3778,148.97,148.84,3.42730833]
[1642337929488,132.438,148.97,148.84,3.42730833]
[1642337930282,132.438,148.97,148.85,17.20832855]
[1642337930484,132.438,148.97,148.85,17.45832855]
[1642337931508,0.26,148.96,148.85,17.45832855]
[1642337932110,0.26,148.96,148.85,17.20832855]
[1642337932307,45.96865198,148.95,148.85,17.20832855]
[1642337932509,69.20525198,148.95,148.85,17.20832855]
[1642337932708,67.48,148.94,148.85,17.20832855]
[1642337932908,73.73,148.94,148.85,17.20832855]
[1642337934412,73.73,148.94,148.85,17.45832855]
[1642337934811,0.26,148.93,148.85,17.45832855]
[1642337935812,0.26,148.93,148.85,17.20832855]
[1642337936315,0.26,148.93,148.85,17.45832855]
[1642337937518,96.7166,148.95,148.85,17.45832855]
[1642337938921,29.2366,148.95,148.85,17.45832855]
[1642337939221,9.8458,149.08,148.86,67.48]
[1642337939417,24.7647,149.05,148.86,107.3783206]
[1642337939818,41.02481063,149.04,148.88,2.10412454]
[1642337940218,41.02481063,149.04,148.89,0.26]
[1642337940418,47.02481063,149.04,148.89,0.26]
[1642337940820,41.02481063,149.04,148.89,0.26]
[1642337941022,41.02481063,149.04,148.89,9.73937833]
[1642337941221,0.26,149.03,148.89,9.73937833]
[1642337941420,0.26,149.03,148.9,67.48]
[1642337941623,0.26,149.03,148.91,14.43662657]
[1642337941822,0.26,149.03,148.91,20.94662657]
[1642337942022,47.02481063,149.04,148.91,88.42662657]
[1642337942225,47.02481063,149.04,148.91,94.74181859]
[1642337942725,6.0,149.04,148.91,94.74181859]
[1642337942923,30.8443,149.06,148.91,104.22119692]
[1642337943124,30.8443,149.06,148.91,113.79841752]
[1642337943323,0.26,149.05,148.91,113.79841752]
[1642337943723,117.77351966,149.09,148.91,113.79841752]
[1642337943925,123.77351966,149.09,148.91,113.79841752]
[1642337944928,124.02351966,149.09,148.91,113.79841752]
[1642337945127,0.26,149.08,148.92,3.78403864]
[1642337945326,0.26,149.08,148.93,67.74]
[1642337945526,0.26,149.08,148.94,4.87582652]
[1642337945727,0.26,149.08,148.94,11.19101854]
[1642337945927,0.26,149.08,148.95,0.26]
[1642337946126,0.26,149.08,148.95,6.57519202]
[1642337946327,0.26,149.08,148.95,12.82519202]
[1642337946729,0.26,149.08,148.95,6.82519202]
[1642337950559,0.26,149.08,148.95,74.30519202]
[1642337950760,0.26,149.08,148.95,6.82519202]
[1642337951159,0.26,149.08,148.96,6.31519202]
[1642337951362,0.26,149.08,148.97,0.26]
[1642337951760,56.29351966,149.09,148.97,0.26]
[1642337952366,56.29351966,149.09,148.97,1.35756791]
[1642337952763,56.29351966,149.09,148.97,1.60756791]
[1642337954868,56.29351966,149.09,148.97,1.35756791]
[1642337955171,56.54351966,149.09,148.94,18.11743485]
[1642337955368,115.1185,149.08,148.94,14.30313485]
[1642337955567,121.1185,149.08,148.94,8.30313485]
[1642337955767,121.3685,149.08,148.94,8.30313485]
[1642337956268,121.3685,149.08,148.94,4.87582652]
[1642337956769,121.3685,149.08,148.94,5.12582652]
[1642337957468,121.3685,149.08,148.94,6.22339443]
[1642337957672,53.8885,149.08,148.94,6.22339443]
[1642337957869,53.8885,149.08,148.95,0.26]
[1642337958373,53.8885,149.08,148.96,1.09756791]
[1642337958669,53.6285,149.08,148.96,1.09756791]
[1642337958870,53.6285,149.08,148.97,0.26]
[1642337959269,53.6285,149.08,148.97,1.35756791]
[1642337959570,53.6285,149.08,148.97,1.60756791]
[1642337959772,0.26,149.07,148.97,1.34756791]
[1642337959973,0.26,149.07,148.94,4.87582652]
[1642337960272,8.397,149.07,148.94,5.12582652]
[1642337960570,23.8347,149.06,148.94,5.97339443]
[1642337960970,30.0847,149.06,148.94,5.97339443]
[1642337961771,30.0847,149.06,148.94,6.22339443]
[1642337961973,30.0847,149.06,148.95,0.26]
[1642337962374,30.0847,149.06,148.96,1.09756791]
[1642337962781,30.0847,149.06,148.96,1.34756791]
[1642337963977,0.26,149.05,148.96,1.34756791]
[1642337964577,0.26,149.05,148.96,0.25]
[1642337964876,0.26,149.05,148.94,6.22339443]
[1642337966379,67.74,149.05,148.94,6.22339443]
[1642337966577,62.13190167,149.04,148.94,6.22339443]
[1642337966978,62.13190167,149.04,148.94,1.34756791]
[1642337967181,68.38190167,149.04,148.94,1.34756791]
[1642337967380,68.38190167,149.04,148.94,1.09756791]
[1642337967579,68.38190167,149.04,148.92,34.46840035]
[1642337967782,67.48,149.03,148.92,28.40320833]
[1642337967981,67.48,149.03,148.93,17.25382746]
[1642337968210,6.25,149.03,148.93,17.25382746]
[1642337968380,6.25,149.03,148.94,0.26]
[1642337968583,6.25,149.03,148.94,1.35756791]
[1642337968782,0.25,149.03,148.94,1.60756791]
[1642337968980,6.25,149.03,148.94,5.42279766]
[1642337969583,0.25,149.03,148.94,5.42279766]
[1642337969982,0.25,149.03,148.94,1.60756791]
[1642337970685,0.26,149.03,148.94,1.60756791]
[1642337971584,0.26,149.03,148.94,1.34756791]
[1642337972299,0.26,149.03,148.94,1.09756791]
[1642337972498,0.26,149.03,148.94,1.34756791]
[1642337973701,0.26,149.03,148.94,0.25]
[1642337973901,0.26,149.03,148.94,0.26]
[1642337974402,0.26,149.03,148.94,1.35756791]
[1642337974600,0.26,149.03,148.94,1.60756791]
[1642337978330,0.26,149.03,148.94,7.60756791]
[1642337979431,0.26,149.03,148.95,3.81652725]
[1642337979631,6.0,149.04,148.95,3.81652725]
[1642337979832,29.1959,149.08,148.96,1.35756791]
[1642337980231,29.1959,149.08,148.97,1.09756791]
[1642337980431,29.1959,149.08,148.97,7.34756791]
[1642337980632,43.12343246,149.07,148.98,2.05862563]
[1642337980832,49.12343246,149.07,148.98,2.30862563]
[1642337981035,49.12343246,149.07,148.98,4.06652725]
[1642337981233,0.26,149.06,148.98,4.06652725]
[1642337982034,0.26,149.06,148.98,0.25]
[1642337982233,0.26,149.06,148.96,3.42730833]
[1642337982435,1.70077588,149.05,148.96,3.42730833]
[1642337982833,1.95077588,149.05,148.91,7.24643518]
[1642337983035,22.5846,149.04,148.91,7.24643518]
[1642337983233,38.95358387,149.02,148.91,7.24643518]
[1642337983434,49.02348387,149.02,148.91,7.24643518]
[1642337983636,49.02348387,149.02,148.9,17.04940535]
[1642337983637,67.48,149.01,148.9,17.04940535]
[1642337983835,67.73,149.01,148.9,17.29940535]
[1642337984033,73.73,149.01,148.9,17.29940535]
[1642337984434,73.73,149.01,148.9,0.25]
[1642337984636,73.73,149.01,148.89,3.42730833]
[1642337984637,73.73,149.01,148.89,3.67730833]
[1642337985135,96.9416,149.01,148.89,3.42730833]
[1642337985436,108.71317588,149.01,148.88,20.65927376]
[1642337985935,107.0124,149.01,148.88,20.65927376]
[1642337986535,107.0124,149.01,148.88,17.48196543]
[1642337986966,0.26,149.0,148.88,17.48196543]
[1642337987139,10.0727,148.98,148.88,17.48196543]
[1642337987340,67.48,148.96,148.88,0.25]
[1642337987540,67.48,148.96,148.86,3.42730833]
[1642337987741,73.48,148.96,148.86,3.42730833]
[1642337987942,73.73,148.96,148.86,3.42730833]
[1642337988341,73.73,148.96,148.85,373.35276323]
[1642337988541,83.804,148.96,148.87,15.11734845]
[1642337988744,83.804,148.96,148.83,3.42730833]
[1642337989141,85.50477588,148.96,148.83,3.42730833]
[1642337989342,94.04377588,148.96,148.82,3.42730833]
[1642337989542,116.94587588,148.96,148.82,3.42730833]
[1642337989745,116.94587588,148.96,148.83,18.32064445]
[1642337990343,115.2451,148.96,148.83,18.32064445]
[1642337990543,109.2451,148.96,148.83,18.32064445]
[1642337990744,109.2451,148.96,148.83,18.57064445]
[1642337991943,106.7061,148.96,148.83,18.57064445]
[1642337992753,0.26,148.95,148.83,18.57064445]
[1642337995279,0.26,148.95,148.83,18.32064445]
[1642337995475,10.3347,148.95,148.83,18.32064445]
[1642337995675,67.48,148.94,148.83,18.32064445]
[1642337996076,67.73,148.94,148.83,18.32064445]
[1642337997078,67.73,148.94,148.83,18.57064445]
[1642337997279,0.07,148.93,148.83,18.57064445]
[1642337998384,0.07,148.93,148.83,0.25]
[1642337998583,67.48,148.92,148.78,3.42730833]
[1642337998783,0.07,148.9,148.78,3.42730833]
[1642337999483,0.07,148.9,148.79,15.5313074]
[1642338000583,10.1485,148.9,148.79,15.5313074]
[1642338000985,16.3985,148.9,148.79,15.5313074]
[1642338001188,40.9838,148.9,148.79,15.5313074]
[1642338003490,40.9838,148.9,148.79,15.7813074]
[1642338003691,30.9053,148.9,148.79,15.7813074]
[1642338003893,30.6553,148.9,148.79,15.7813074]
[1642338005295,30.9053,148.9,148.79,15.7813074]
[1642338005721,30.6553,148.9,148.79,15.7813074]
[1642338006898,0.26,148.89,148.79,15.7813074]
[1642338008398,67.74,148.89,148.79,15.7813074]
[1642338008799,73.99,148.89,148.79,15.7813074]
[1642338009401,1.21889284,148.84,148.79,15.7813074]
[1642338009700,2.43778568,148.84,148.79,0.25]
[1642338009900,2.43778568,148.84,148.75,3.67730833]
[1642338010702,2.43778568,148.84,148.76,16.21302246]
[1642338010902,2.43778568,148.84,148.76,16.46302246]
[1642338011902,0.26,148.83,148.76,16.46302246]
[1642338012100,2.43778568,148.84,148.76,16.46302246]
[1642338012502,2.43778568,148.84,148.77,0.26]
[1642338012901,2.43778568,148.84,148.78,1.09756791]
[1642338013101,2.43778568,148.84,148.78,4.52487624]
[1642338013302,2.43778568,148.84,148.79,0.26]
[1642338014604,1.21889284,148.84,148.79,0.26]
[1642338014807,1.21889284,148.82,148.79,0.26]
[1642338015105,2.43778568,148.82,148.8,6.06439994]
[1642338015305,2.43778568,148.82,148.81,49.09943063]
[1642338015805,2.43778568,148.82,148.81,49.34943063]
[1642338016206,2.43778568,148.82,148.81,52.3816306]
[1642338016405,2.43778568,148.82,148.81,55.41383057]
[1642338016705,23.3969,148.89,148.82,33.0]
[1642338016910,29.6469,148.89,148.82,33.25]
[1642338017708,0.26,148.88,148.82,33.25]
[1642338018912,23.3969,148.89,148.82,33.25]
[1642338019115,24.5853,148.9,148.82,33.25]
[1642338019313,30.5853,148.9,148.82,33.25]
[1642338019515,24.5853,148.9,148.82,33.25]
[1642338019914,113.15133921,148.93,148.82,33.25]
[1642338020314,0.26,148.92,148.82,33.0]
[1642338021234,24.247,148.92,148.82,33.0]
[1642338021437,30.497,148.92,148.82,33.0]
[1642338021836,30.497,148.92,148.82,33.25]
[1642338022243,30.497,148.92,148.82,34.34756791]
[1642338022436,24.497,148.92,148.82,34.34756791]
[1642338022836,30.497,148.92,148.82,34.34756791]
[1642338023040,30.497,148.92,148.82,33.25]
[1642338023439,30.497,148.92,148.83,0.26]
[1642338023639,0.72170739,148.91,148.83,4.08110535]
[1642338023838,0.72170739,148.91,148.83,4.33110535]
[1642338024542,0.72170739,148.91,148.83,0.51]
[1642338025341,0.72170739,148.91,148.83,0.26]
[1642338026843,0.72170739,148.91,148.83,1.35756791]
[1642338027243,0.72170739,148.91,148.83,0.51]
[1642338027444,0.72170739,148.91,148.83,0.25]
[1642338028242,0.98170739,148.91,148.83,0.25]
[1642338028443,0.98170739,148.91,148.82,36.67730833]
[1642338029046,0.98170739,148.91,148.82,33.25]
[1642338029246,0.72170739,148.91,148.82,33.25]
[1642338029446,0.98170739,148.91,148.82,33.25]
[1642338029847,0.98170739,148.91,148.83,3.82338686]
[1642338030247,0.72170739,148.91,148.83,4.07338686]
[1642338031848,0.72170739,148.91,148.83,0.25]
[1642338032047,0.72170739,148.91,148.82,36.67730833]
[1642338033251,0.72170739,148.91,148.83,3.8235985]
[1642338033449,0.72170739,148.91,148.83,4.0735985]
[1642338034250,0.72170739,148.91,148.84,3.8235985]
[1642338034452,0.72170739,148.91,148.84,4.0735985]
[1642338034955,0.72170739,148.91,148.84,0.25]
[1642338035952,0.72170739,148.91,148.83,3.67730833]
[1642338036952,0.72170739,148.91,148.83,4.07472938]
[1642338037455,0.72170739,148.91,148.83,0.25]
[1642338037857,0.72170739,148.91,148.82,36.67730833]
[1642338038455,0.72170739,148.91,148.84,3.824957]
[1642338038853,0.72170739,148.91,148.84,4.074957]
[1642338039053,0.72170739,148.91,148.84,0.25]
[1642338039759,0.72170739,148.91,148.84,0.51]
[1642338039962,0.72170739,148.91,148.84,1.35756791]
[1642338040360,0.72170739,148.91,148.84,74.76756791]
[1642338040757,0.72170739,148.91,148.85,7.25256353]
[1642338040958,0.72170739,148.91,148.86,16.47302246]
[1642338041359,0.72170739,148.91,148.86,16.72302246]
[1642338041558,0.72170739,148.91,148.86,16.46302246]
[1642338041959,0.72170739,148.91,148.87,0.26]
[1642338042960,0.72170739,148.91,148.88,1.91141761]
[1642338043165,0.72170739,148.91,148.89,6.06439994]
[1642338043361,0.72170739,148.91,148.89,6.31439994]
[1642338043563,0.26,148.96,148.89,6.31439994]
[1642338043764,0.26,148.96,148.89,8.22581755]
[1642338044164,77.1777603,148.97,148.89,8.22581755]
[1642338047490,0.26,148.96,148.89,8.22581755]
[1642338047691,0.26,148.96,148.89,6.31439994]
[1642338048092,0.26,148.96,148.89,7.41196785]
[1642338048292,0.72465571,148.97,148.89,7.41196785]
[1642338048494,0.72465453,148.96,148.9,0.26]
[1642338048894,0.72465453,148.96,148.91,1.09756791]
[1642338049093,0.72465453,148.96,148.92,3.09943063]
[1642338049295,0.72465453,148.96,148.92,3.35943063]
[1642338049494,0.72465453,148.96,148.92,3.60943063]
[1642338050396,0.72465453,148.96,148.93,1.09756791]
[1642338050595,0.72465453,148.96,148.94,6.06439994]
[1642338050994,0.72465453,148.96,148.94,6.31439994]
[1642338053598,0.98760087,149.0,148.94,6.31439994]
[1642338057014,0.72760087,149.0,148.94,6.31439994]
[1642338057502,0.72760087,149.0,148.94,6.06439994]
[1642338057704,0.72760087,149.0,148.94,6.31439994]
[1642338060003,0.98760087,149.0,148.94,6.31439994]
[1642338062908,0.98760087,149.0,148.94,10.1394762]
[1642338063611,0.98760087,149.0,148.94,6.31439994]
[1642338065213,0.72760087,149.0,148.94,7.41487268]
[1642338065409,0.72760087,149.0,148.95,0.26]
[1642338065812,0.72760087,149.0,148.95,1.36047274]
[1642338066010,0.72760087,149.0,148.95,1.61047274]
[1642338067311,0.72760087,149.0,148.95,1.35047274]
[1642338069813,0.72760087,149.0,148.96,0.26]
[1642338071311,0.72760087,149.0,148.97,1.10047274]
[1642338071512,1.81789575,149.08,148.99,80.0]
[1642338071716,7.81789575,149.08,148.99,80.0]
[1642338071915,1.81789575,149.08,149.0,0.26]
[1642338072113,7.81789575,149.08,149.0,0.26]
[1642338072312,6.0,149.08,149.0,0.26]
[1642338072714,42.44630607,149.07,149.0,15.9524214]
[1642338072913,6.0,149.07,149.0,16.2024214]
[1642338073113,23.9882,149.09,149.01,1.10047274]
[1642338073315,23.9882,149.09,149.02,0.26]
[1642338073715,0.60986446,149.07,149.03,1.10047274]
[1642338073913,0.60986446,149.07,149.04,0.26]
[1642338074113,1.81789575,149.11,149.05,68.0]
[1642338074314,1.81789575,149.11,149.06,0.26]
[1642338074915,1.81789575,149.13,149.06,3.88003169]
[1642338075114,1.81789575,149.13,149.06,9.88003169]
[1642338075414,1.81789575,149.13,149.06,11.23050443]
[1642338075613,70.48017413,149.16,149.06,78.39050443]
[1642338075614,47.80767413,149.16,149.06,78.39050443]
[1642338076817,47.80767413,149.16,149.06,11.23050443]
[1642338077616,47.80767413,149.16,149.13,379.41782901]
[1642338077816,24.6229,149.19,149.14,3.03219997]
[1642338078018,25.17899575,149.2,149.14,3.03219997]
[1642338078218,6.0,149.19,149.14,3.28219997]
[1642338078415,31.17899575,149.2,149.14,3.28219997]
[1642338078719,0.41187661,149.15,149.14,18.97462137]
[1642338078916,0.41187661,149.15,149.14,22.00682134]
[1642338079718,0.41187661,149.15,149.14,62.00682134]
[1642338079918,0.41187661,149.15,149.14,68.26682134]
[1642338081223,0.41187661,149.15,149.14,62.26682134]
[1642338081418,0.41187661,149.15,149.14,22.26682134]
[1642338081619,0.41187661,149.15,149.14,22.00682134]
[1642338081821,0.41187661,149.15,149.14,57.26682134]
[1642338083321,22.893,149.24,149.15,59.0]
[1642338083726,22.893,149.24,149.16,0.26]
[1642338084525,47.71060774,149.23,149.16,17.72106317]
[1642338084925,47.71060774,149.23,149.16,17.97106317]
[1642338085125,22.893,149.24,149.16,17.97106317]
[1642338085327,22.831,149.25,149.16,23.97106317]
[1642338085528,22.831,149.25,149.16,25.07153591]
[1642338085730,1.81789575,149.31,149.16,25.07153591]
[1642338085928,1.81789575,149.31,149.17,67.16]
[1642338086331,1.81789575,149.31,149.18,1.36047274]
[1642338086533,47.3976,149.32,149.18,12.34711]
[1642338086729,47.3976,149.32,149.19,68.26047274]
[1642338086930,47.3976,149.32,149.2,0.26]
[1642338087229,47.3976,149.32,149.21,1.85138992]
[1642338087429,47.3976,149.32,149.22,0.26]
[1642338088031,23.4968,149.35,149.22,0.26]
[1642338088654,29.4968,149.35,149.22,0.26]
[1642338088855,23.9288,149.34,149.22,0.26]
[1642338089052,47.64031877,149.33,149.22,0.26]
[1642338089754,53.64031877,149.33,149.29,521.47042528]
[1642338090053,23.9288,149.34,149.29,521.47042528]
[1642338090453,0.02,149.35,149.29,521.47042528]
[1642338090654,0.02,149.35,149.29,521.72042528]
[1642338092855,0.02,149.35,149.29,521.47042528]
[1642338093556,0.02,149.35,149.29,521.72042528]
[1642338093758,0.02,149.35,149.29,521.47042528]
[1642338094458,0.02,149.35,149.29,521.72042528]
[1642338094657,0.02,149.35,149.29,521.47042528]
[1642338094859,0.02,149.35,149.29,521.72042528]
[1642338096162,0.02,149.35,149.3,0.26]
[1642338099265,0.02,149.35,149.29,527.72042528]
[1642338100668,0.02,149.35,149.3,0.26]
[1642338101867,0.02,149.35,149.29,527.72042528]
[1642338102270,0.02,149.35,149.29,527.47042528]
[1642338102466,0.02,149.35,149.29,521.47042528]
[1642338103566,0.02,149.35,149.29,521.72042528]
[1642338104371,0.02,149.35,149.3,0.26]
[1642338104870,0.02,149.35,149.29,521.72042528]
[1642338107274,0.02,149.35,149.3,0.26]
[1642338108275,0.02,149.35,149.3,1.35763139]
[1642338108480,0.02,149.35,149.31,4.501583]
[1642338108975,0.02,149.35,149.31,4.751583]
[1642338109175,0.02,149.35,149.31,0.25]
[1642338110176,0.02,149.35,149.29,521.72042528]
[1642338110374,0.02,149.35,149.3,16.64690077]
[1642338110775,0.02,149.35,149.29,521.47042528]
[1642338111780,0.02,149.35,149.29,521.72042528]
[1642338112983,0.02,149.35,149.29,540.61959856]
[1642338113383,0.02,149.35,149.29,540.36959856]
[1642338113785,0.02,149.35,149.29,521.47042528]
[1642338114787,0.02,149.35,149.29,521.72042528]
[1642338115790,0.02,149.35,149.29,521.47042528]
[1642338116989,1.83789575,149.35,149.29,521.47042528]
[1642338117391,75.24789575,149.35,149.29,521.47042528]
[1642338117589,8.08789575,149.35,149.29,521.47042528]
[1642338118288,2.08789575,149.35,149.29,521.47042528]
[1642338120092,0.26,149.34,149.29,521.47042528]
[1642338121092,2.08789575,149.35,149.29,521.47042528]
[1642338122217,0.27,149.35,149.29,521.72042528]
[1642338122417,0.02,149.35,149.29,521.72042528]
[1642338122615,0.28,149.35,149.29,521.72042528]
[1642338122816,0.28,149.35,149.29,521.47042528]
[1642338124115,0.28,149.35,149.29,521.72042528]
[1642338124316,0.02,149.35,149.29,521.72042528]
[1642338128623,0.02,149.35,149.29,522.81805667]
[1642338129623,0.02,149.35,149.29,521.72042528]
[1642338134629,0.02,149.35,149.29,522.81805667]
[1642338135128,0.02,149.35,149.29,522.56805667]
[1642338136333,0.02,149.35,149.29,522.81805667]
[1642338137937,0.02,149.35,149.3,0.26]
[1642338138334,0.02,149.35,149.31,1.09763139]
[1642338138534,0.02,149.35,149.32,0.9808626]
[1642338138734,0.02,149.35,149.33,3.03219997]
[1642338138933,0.02,149.35,149.33,6.31439994]